[Event "Czech Open-E Teams 2022"]
[Site "Pardubice"]
[Date "2022.07.17"]
[Round "6.13"]
[White "Vyprachticky, David"]
[Black "Sprenar, Petr"]
[Result "1-0"]
[ECO "B47"]
[WhiteElo "2302"]
[BlackElo "2276"]
[Annotator "ChessBase"]
[PlyCount "113"]
[EventDate "2022.07.14"]
[EventType "team-tourn"]
[EventCountry "CZE"]
[SourceTitle "playchess.com"]
[Source "ChessBase"]
[SourceQuality "1"]
[TimeControl "5400+30"]

1. e4 c5 {[%emt 0:09:47]} 2. Nf3 {[%emt 0:00:11]} e6 {[%emt 0:00:39]} 3. d4 {[%emt 0:00:31]} cxd4 {[%emt 0:00:02]} 4. Nxd4 {[%emt 0:00:07]} Nc6 {[%emt 0:00:03]} 5. Nc3 {[%emt 0:00:19]} Qc7 {[%emt 0:00:04]} 6. g3 {[%emt 0:00:19]} a6 {[%emt 0:00:18]} 7. Bg2 {[%emt 0:00:11]} Nf6 {[%emt 0:00:14]} 8. O-O {[%emt 0:00:15]} Nxd4 {[%emt 0:00:21]} 9. Qxd4 {[%emt 0:00:12]} Bc5 {[%emt 0:00:03]} 10. Bf4 {[%emt 0:03:04]} d6 {[%emt 0:00:32]} 11. Qd3 {[%emt 0:01:01]} h6 {[%emt 0:00:47]} 12. Rad1 {[%emt 0:00:36]} e5 {[%emt 0:01:28]} 13. Be3 {[%emt 0:00:07]} Be6 {[%emt 0:00:39]} 14. Bxc5 {[%emt 0:01:13]} dxc5 {[%emt 0:01:21]} 15. Nd5 {[%emt 0:00:11]} Bxd5 {[%emt 0:00:05]} 16. exd5 {[%emt 0:00:05]} Qd6 {[%emt 0:00:02]} 17. f4 {[%emt 0:02:08]} exf4 {[%emt 0:03:57]} 18. Rde1+ {[%emt 0:01:46]} Kf8 {[%emt 0:00:35]} 19. Rxf4 {[%emt 0:00:38]} Re8 {[%emt 0:01:18]} 20. Rxe8+ {[%emt 0:02:38]} Kxe8 {[%emt 0:00:45]} 21. b4 {[%emt 0:06:46]} Kd8 {[%emt 0:05:17]} 22. bxc5 {[%emt 0:11:41]} Qxc5+ {[%emt 0:01:23]} 23. Qd4 {[%emt 0:00:13]} Qxd4+ {[%emt 0:00:38]} 24. Rxd4 {[%emt 0:00:08]} Re8 {[%emt 0:00:47]} 25. Kf2 {[%emt 0:00:22]} h5 {[%emt 0:01:37]} 26. h3 {[%emt 0:00:50]} Re5 {[%emt 0:00:21]} 27. Rb4 {[%emt 0:02:18]} b5 {[%emt 0:00:44]} 28. a4 {[%emt 0:00:36]} Rf5+ {[%emt 0:02:09]} 29. Bf3 {[%emt 0:04:40]} bxa4 {[%emt 0:03:01]} 30. Rxa4 {[%emt 0:00:25]} Kc7 {[%emt 0:03:23]} 31. Rxa6 {[%emt 0:06:15]} Nxd5 {[%emt 0:11:05]} 32. Ra5 {[%emt 0:02:55]} Kd6 {[%emt 0:05:56]} 33. c4 {[%emt 0:02:52]} Ne7 {[%emt 0:01:01]} 34. Rxf5 {[%emt 0:00:16]} Nxf5 {[%emt 0:00:05]} 35. Bxh5 {[%emt 0:00:07]} g6 {[%emt 0:00:24]} 36. Bg4 {[%emt 0:01:06]} Nd4 {[%emt 0:00:36]} 37. Bf3 {[%emt 0:04:41]} Kc5 {[%emt 0:09:27]} 38. Bd5 {[%emt 0:01:13]} f6 {[%emt 0:00:20]} 39. h4 {[%emt 0:01:14]} Nf5 {[%emt 0:00:55]} 40. Bf7 {[%emt 0:03:31]} g5 {[%emt 0:02:48]} 41. h5 {[%emt 0:01:00]} Kd4 {[%emt 0:00:36]} 42. Kf3 {[%emt 0:01:43]} Nh6 {[%emt 0:01:35]} 43. Bd5 {[%emt 0:00:35]} f5 {[%emt 0:00:08]} 44. Be6 {[%emt 0:01:13]} Ke5 {[%emt 0:01:42]} 45. Bd7 {[%emt 0:00:38]} Ng8 {[%emt 0:18:45]} 46. c5 {[%emt 0:01:31]} Nh6 {[%emt 0:00:12]} 47. c6 {[%emt 0:00:41]} Kd6 {[%emt 0:00:07]} 48. Bxf5 {[%emt 0:01:22]} Kxc6 {[%emt 0:00:22]} 49. Ke4 {[%emt 0:01:08]} Kd6 {[%emt 0:01:10]} 50. Bh3 {[%emt 0:01:42]} g4 {[%emt 0:01:49]} 51. Bxg4 {[%emt 0:01:42]} Nxg4 {[%emt 0:03:48]} 52. Kf5 {[%emt 0:00:08]} Ne3+ {[%emt 0:06:18]} 53. Kg6 {[%emt 0:00:48]} Ke6 {[%emt 0:02:22]} 54. h6 {[%emt 0:00:18]} Ng4 {[%emt 0:03:06]} 55. h7 {[%emt 0:00:25]} Ne5+ {[%emt 0:00:05]} 56. Kg7 {[%emt 0:00:12]} Nf7 {[%emt 0:00:05]} 57. g4 {[%emt 0:00:11]} 1-0

[Event "Czech Open-E Teams 2022"]
[Site "Pardubice"]
[Date "2022.07.17"]
[Round "6.14"]
[White "Tichy, Stepan"]
[Black "Oresky, Jan"]
[Result "1/2-1/2"]
[ECO "D02"]
[WhiteElo "2207"]
[BlackElo "2274"]
[Annotator "ChessBase"]
[PlyCount "20"]
[EventDate "2022.07.14"]
[EventType "team-tourn"]
[EventCountry "CZE"]
[SourceTitle "playchess.com"]
[Source "ChessBase"]
[SourceQuality "1"]
[TimeControl "5400+30"]

1. d4 {[%emt 0:00:04]} d5 {[%emt 0:03:34]} 2. Nf3 {[%emt 0:01:13]} Nf6 {[%emt 0:00:13]} 3. Bf4 {[%emt 0:00:30]} c5 {[%emt 0:01:29]} 4. c3 {[%emt 0:00:13]} e6 {[%emt 0:01:33]} 5. e3 {[%emt 0:00:22]} Nc6 {[%emt 0:01:41]} 6. Bd3 {[%emt 0:00:50]} Be7 {[%emt 0:00:38]} 7. Ne5 {[%emt 0:01:46]} Nxe5 {[%emt 0:02:50]} 8. Bxe5 {[%emt 0:01:26]} Bd7 {[%emt 0:04:02]} 9. Nd2 {[%emt 0:00:54]} c4 {[%emt 0:04:40]} 10. Bc2 {[%emt 0:00:29]} b5 {[%emt 0:00:13]} 1/2-1/2

[Event "Czech Open-E Teams 2022"]
[Site "Pardubice"]
[Date "2022.07.17"]
[Round "6.15"]
[White "Vedral, Oldrich"]
[Black "Galicek, Stanislav"]
[Result "1/2-1/2"]
[ECO "B90"]
[WhiteElo "2268"]
[BlackElo "2071"]
[Annotator "ChessBase"]
[PlyCount "123"]
[EventDate "2022.07.14"]
[EventType "team-tourn"]
[EventCountry "CZE"]
[SourceTitle "playchess.com"]
[Source "ChessBase"]
[SourceQuality "1"]
[TimeControl "5400+30"]

1. e4 {[%emt 0:00:03]} c5 {[%emt 0:00:11]} 2. Nf3 {[%emt 0:00:06]} d6 {[%emt 0:00:08]} 3. d4 {[%emt 0:00:22]} cxd4 {[%emt 0:00:26]} 4. Nxd4 {[%emt 0:00:11]} Nf6 {[%emt 0:00:08]} 5. Nc3 {[%emt 0:00:16]} a6 {[%emt 0:00:12]} 6. Be3 {[%emt 0:00:09]} e6 {[%emt 0:00:20]} 7. f4 {[%emt 0:04:36]} Be7 {[%emt 0:03:03]} 8. Qf3 {[%emt 0:03:10]} Nbd7 {[%emt 0:01:51]} 9. O-O-O {[%emt 0:03:18]} Qc7 {[%emt 0:08:12]} 10. g4 {[%emt 0:01:48]} h6 {[%emt 0:02:38]} 11. h4 {[%emt 0:04:54]} h5 {[%emt 0:03:37]} 12. g5 {[%emt 0:03:41]} Ng4 {[%emt 0:01:00]} 13. g6 {[%emt 0:01:29]} Ndf6 {[%emt 0:02:06]} 14. gxf7+ {[%emt 0:07:32]} Kxf7 {[%emt 0:00:22]} 15. f5 {[%emt 0:02:34]} e5 {[%emt 0:12:10]} 16. Ne6 {[%emt 0:01:36]} Bxe6 {[%emt 0:01:36]} 17. fxe6+ {[%emt 0:00:07]} Kxe6 {[%emt 0:00:33]} 18. Nd5 {[%emt 0:23:35]} Qc6 {[%emt 0:08:00]} 19. Bg5 {[%emt 0:02:04]} Rac8 {[%emt 0:03:21]} 20. Qb3 {[%emt 0:00:51]} Kd7 {[%emt 0:04:08]} 21. Bxf6 {[%emt 0:05:17]} gxf6 {[%emt 0:07:15]} 22. Nb6+ {[%emt 0:02:20]} Kc7 {[%emt 0:01:10]} 23. Nxc8 {[%emt 0:00:13]} Rxc8 {[%emt 0:00:34]} 24. Rh3 {[%emt 0:11:55]} Qxe4 {[%emt 0:02:45]} 25. Rc3+ {[%emt 0:00:16]} Kb8 {[%emt 0:00:27]} 26. Rxc8+ {[%emt 0:00:14]} Kxc8 {[%emt 0:00:26]} 27. Qe6+ {[%emt 0:00:19]} Kd8 {[%emt 0:01:06]} 28. Bd3 {[%emt 0:02:07]} Qc6 {[%emt 0:10:03]} 29. Qg8+ {[%emt 0:06:54]} Qe8 {[%emt 0:03:48]} 30. Qb3 {[%emt 0:01:20]} Qd7 {[%emt 0:05:42]} 31. Bc4 {[%emt 0:02:34]} f5 {[%emt 0:03:15]} 32. Be6 {[%emt 0:00:25]} Qb5 {[%emt 0:00:48]} 33. Qc3 {[%emt 0:03:49]} Qc6 {[%emt 0:01:28]} 34. Qe1 {[%emt 0:01:20]} Qc5 {[%emt 0:07:00]} 35. Rd3 {[%emt 0:02:07]} Qf2 {[%emt 0:01:35]} 36. Qc3 {[%emt 0:00:43]} Qg1+ {[%emt 0:01:00]} 37. Rd1 {[%emt 0:01:44]} Qe3+ {[%emt 0:00:27]} 38. Qxe3 {[%emt 0:00:00]} Nxe3 {[%emt 0:00:01]} 39. Rh1 {[%emt 0:01:13]} f4 {[%emt 0:01:19]} 40. Bf7 {[%emt 0:00:17]} Nf5 {[%emt 0:00:49]} 41. Bxh5 {[%emt 0:00:31]} Ng3 {[%emt 0:00:32]} 42. Bf3 {[%emt 0:00:04]} Nxh1 {[%emt 0:00:32]} 43. Bxh1 {[%emt 0:00:06]} Bxh4 {[%emt 0:01:32]} 44. Bxb7 {[%emt 0:00:06]} a5 {[%emt 0:00:11]} 45. Kd2 {[%emt 0:00:12]} Kc7 {[%emt 0:00:09]} 46. Bf3 {[%emt 0:00:46]} Kb6 {[%emt 0:00:09]} 47. Kd3 {[%emt 0:01:04]} Kc5 {[%emt 0:00:09]} 48. c4 {[%emt 0:00:33]} Bf2 {[%emt 0:00:32]} 49. a3 Bd4 {[%emt 0:00:39]} 50. b3 {[%emt 0:01:57]} Bb2 {[%emt 0:01:13]} 51. b4+ axb4 {[%emt 0:00:49]} 52. axb4+ {[%emt 0:00:05]} Kxb4 {[%emt 0:00:10]} 53. Ba8 {[%emt 0:00:08]} Kc5 {[%emt 0:00:43]} 54. Bb7 {[%emt 0:00:07]} Bd4 {[%emt 0:01:23]} 55. Ba8 {[%emt 0:00:01]} Kb6 {[%emt 0:00:15]} 56. Bd5 {[%emt 0:00:01]} Kc7 {[%emt 0:00:11]} 57. Ke4 {[%emt 0:00:07]} Kd7 {[%emt 0:00:31]} 58. Ba8 {[%emt 0:00:05]} Ke7 {[%emt 0:00:07]} 59. Bd5 {[%emt 0:00:03]} Kf6 {[%emt 0:00:09]} 60. Ba8 {[%emt 0:00:02]} Kg5 {[%emt 0:00:12]} 61. Kf3 {[%emt 0:00:01]} Bc5 {[%emt 0:00:40]} 62. Ke4 1/2-1/2

[Event "Czech Open-E Teams 2022"]
[Site "Pardubice"]
[Date "2022.07.17"]
[Round "6.16"]
[White "Postl, Petr"]
[Black "Cuhra, Martin"]
[Result "1-0"]
[ECO "B23"]
[WhiteElo "1900"]
[BlackElo "2225"]
[Annotator "ChessBase"]
[PlyCount "55"]
[EventDate "2022.07.14"]
[EventType "team-tourn"]
[EventCountry "CZE"]
[SourceTitle "playchess.com"]
[Source "ChessBase"]
[SourceQuality "1"]
[TimeControl "5400+30"]

1. e4 c5 2. Nc3 Nc6 3. f4 g6 4. Nf3 Bg7 5. d3 d6 6. Be3 Nd4 7. Be2 e6 8. Qd2 Ne7 9. O-O-O d5 10. Bg1 Nxf3 11. Bxf3 d4 12. Ne2 b5 13. g4 Rb8 14. h4 Bb7 15. h5 f5 16. Rf1 O-O 17. Ng3 c4 18. hxg6 hxg6 19. gxf5 exf5 20. Qh2 Rf6 21. exf5 Bxf3 22. Qh7+ Kf8 23. Rxf3 Nxf5 24. Nxf5 gxf5 25. Rg3 Rf7 26. c3 dxc3 27. Bc5+ Ke8 28. Rxg7 1-0

[Event "Czech Open-E Teams 2022"]
[Site "Pardubice"]
[Date "2022.07.17"]
[Round "6.17"]
[White "Bouska, Jiri"]
[Black "Vojta, Jakub"]
[Result "1/2-1/2"]
[ECO "C01"]
[WhiteElo "2157"]
[BlackElo "2326"]
[Annotator "ChessBase"]
[PlyCount "89"]
[EventDate "2022.07.14"]
[EventType "team-tourn"]
[EventCountry "CZE"]
[SourceTitle "playchess.com"]
[Source "ChessBase"]
[SourceQuality "1"]
[TimeControl "5400+30"]

1. e4 e6 2. d4 d5 3. exd5 exd5 4. Nf3 Bd6 5. Bd3 Ne7 6. Bg5 f6 7. Bh4 Nf5 8. Bg3 O-O 9. Nc3 Bb4 10. O-O Nxg3 11. hxg3 Bg4 12. Qd2 Qd6 13. Nh2 Be6 14. Qe2 Bf7 15. Qg4 Bxc3 16. bxc3 Nd7 17. Nf3 g6 18. Nh4 Kh8 19. Kh2 Rg8 20. Rh1 f5 21. Qh3 Nf6 22. Kg1 Rae8 23. Nf3 Rg7 24. Qh4 Bg8 25. Ne5 Rxe5 26. dxe5 Qxe5 27. Qd4 Re7 28. Qxe5 Rxe5 29. f3 Kg7 30. Kf2 Nd7 31. Rab1 Nc5 32. Rhe1 Rxe1 33. Rxe1 Be6 34. Ke3 Kf6 35. c4 Nxd3 36. cxd3 dxc4 37. dxc4 Bxc4 38. Kd4 Be6 39. Rc1 c6 40. Kc5 Bxa2 41. Ra1 Bd5 42. Rxa7 b5 43. Rxh7 g5 44. Rb7 g4 45. f4 1/2-1/2

[Event "Czech Open-E Teams 2022"]
[Site "Pardubice"]
[Date "2022.07.17"]
[Round "6.18"]
[White "Virostko, Petr"]
[Black "Mojzis, Jaroslav"]
[Result "1/2-1/2"]
[ECO "C86"]
[WhiteElo "2326"]
[BlackElo "2108"]
[Annotator "ChessBase"]
[PlyCount "225"]
[EventDate "2022.07.14"]
[EventType "team-tourn"]
[EventCountry "CZE"]
[SourceTitle "playchess.com"]
[Source "ChessBase"]
[SourceQuality "1"]
[TimeControl "5400+30"]

1. e4 {[%emt 0:00:03]} e5 {[%emt 0:00:09]} 2. Nf3 {[%emt 0:00:07]} Nc6 {[%emt 0:00:07]} 3. Bb5 {[%emt 0:00:07]} a6 {[%emt 0:00:12]} 4. Ba4 {[%emt 0:00:13]} Nf6 {[%emt 0:00:09]} 5. O-O {[%emt 0:00:11]} Be7 {[%emt 0:00:10]} 6. Qe2 {[%emt 0:00:23]} b5 {[%emt 0:03:34]} 7. Bb3 {[%emt 0:00:06]} O-O {[%emt 0:04:38]} 8. c3 {[%emt 0:00:26]} d5 {[%emt 0:00:21]} 9. d3 {[%emt 0:00:22]} d4 {[%emt 0:02:24]} 10. Bg5 {[%emt 0:02:32]} Qd6 {[%emt 0:08:52]} 11. Rd1 {[%emt 0:11:24]} h6 {[%emt 0:12:35]} 12. Bh4 g5 {[%emt 0:05:15]} 13. Bg3 {[%emt 0:12:57]} Nh5 {[%emt 0:00:29]} 14. cxd4 {[%emt 0:04:15]} Nxg3 {[%emt 0:00:55]} 15. hxg3 {[%emt 0:00:34]} Nxd4 {[%emt 0:00:11]} 16. Nxd4 {[%emt 0:00:24]} Qxd4 {[%emt 0:06:39]} 17. Nc3 {[%emt 0:04:20]} c6 {[%emt 0:00:17]} 18. Rac1 {[%emt 0:12:05]} Kg7 {[%emt 0:00:18]} 19. Qh5 {[%emt 0:03:57]} Bc5 {[%emt 0:03:15]} 20. Ne2 {[%emt 0:02:40]} Qd6 {[%emt 0:11:47]} 21. g4 {[%emt 0:03:51]} a5 {[%emt 0:04:08]} 22. Rd2 {[%emt 0:06:24]} a4 {[%emt 0:04:33]} 23. Bd1 {[%emt 0:01:10]} a3 {[%emt 0:03:41]} 24. bxa3 {[%emt 0:04:12]} Bxa3 {[%emt 0:00:23]} 25. Rb1 {[%emt 0:00:22]} Bb4 {[%emt 0:01:38]} 26. Rdb2 {[%emt 0:00:17]} c5 {[%emt 0:01:11]} 27. Bb3 {[%emt 0:02:00]} Qd7 {[%emt 0:02:07]} 28. Bd5 {[%emt 0:04:08]} Ra3 {[%emt 0:03:23]} 29. d4 {[%emt 0:00:54]} Qxg4 {[%emt 0:06:06]} 30. Qxg4 {[%emt 0:01:28]} Bxg4 {[%emt 0:00:08]} 31. dxc5 {[%emt 0:01:37]} Bxc5 {[%emt 0:00:50]} 32. Rxb5 {[%emt 0:00:23]} Ba7 {[%emt 0:02:39]} 33. R1b2 {[%emt 0:03:48]} Re8 {[%emt 0:04:45]} 34. Rb7 {[%emt 0:03:49]} Be6 {[%emt 0:00:16]} 35. Rc2 {[%emt 0:01:18]} Bxd5 {[%emt 0:04:04]} 36. exd5 {[%emt 0:00:17]} Bd4 {[%emt 0:00:55]} 37. d6 {[%emt 0:05:51]} Rd8 {[%emt 0:01:19]} 38. d7 {[%emt 0:03:51]} Kf6 {[%emt 0:00:11]} 39. Rd2 {[%emt 0:01:07]} Ke7 {[%emt 0:01:12]} 40. Nxd4 {[%emt 0:00:19]} exd4 {[%emt 0:00:05]} 41. Rxd4 {[%emt 0:00:58]} Rxa2 {[%emt 0:00:06]} 42. Re4+ {[%emt 0:01:23]} Kd6 {[%emt 0:00:08]} 43. Rb6+ {[%emt 0:00:40]} Kxd7 {[%emt 0:00:24]} 44. Rxh6 {[%emt 0:00:12]} Re8 {[%emt 0:00:21]} 45. Rd4+ {[%emt 0:01:16]} Ke7 {[%emt 0:00:06]} 46. f3 {[%emt 0:00:08]} Rg8 {[%emt 0:01:16]} 47. Rb4 {[%emt 0:00:55]} Ra7 {[%emt 0:00:48]} 48. Kh2 {[%emt 0:00:31]} Kf8 {[%emt 0:00:16]} 49. Rh7 {[%emt 0:00:07]} Ra8 {[%emt 0:00:51]} 50. Rb7 {[%emt 0:00:27]} Rg7 {[%emt 0:00:02]} 51. Rh6 {[%emt 0:00:43]} Kg8 {[%emt 0:00:13]} 52. Rf6 {[%emt 0:00:29]} Ra4 {[%emt 0:00:48]} 53. Rb8+ {[%emt 0:01:06]} Kh7 {[%emt 0:00:06]} 54. Rf8 {[%emt 0:00:04]} Rf4 {[%emt 0:00:45]} 55. Ra6 {[%emt 0:00:54]} Rg6 {[%emt 0:00:15]} 56. Raa8 {[%emt 0:00:17]} Kg7 {[%emt 0:02:18]} 57. Kg3 {[%emt 0:00:21]} Rb4 {[%emt 0:00:26]} 58. Rg8+ {[%emt 0:00:55]} Kf6 {[%emt 0:00:08]} 59. Ra6+ {[%emt 0:00:49]} Kf5 {[%emt 0:00:08]} 60. Ra5+ {[%emt 0:00:35]} Kf6 {[%emt 0:00:09]} 61. Rc8 {[%emt 0:00:27]} Kg7 {[%emt 0:00:11]} 62. Rcc5 {[%emt 0:00:14]} Kf6 {[%emt 0:00:15]} 63. Rf5+ {[%emt 0:00:09]} Kg7 {[%emt 0:00:19]} 64. Ra7 {[%emt 0:00:29]} Rf6 {[%emt 0:00:52]} 65. Rxg5+ {[%emt 0:00:09]} Kh6 {[%emt 0:00:05]} 66. Rc5 {[%emt 0:00:29]} Rb2 {[%emt 0:00:08]} 67. Kh3 {[%emt 0:00:37]} Kg6 {[%emt 0:00:17]} 68. Rc3 {[%emt 0:00:35]} Kg7 {[%emt 0:00:17]} 69. g4 {[%emt 0:00:29]} Rb4 {[%emt 0:00:37]} 70. Ra8 {[%emt 0:00:31]} Rd4 {[%emt 0:00:23]} 71. Kg3 {[%emt 0:00:19]} Rb4 {[%emt 0:00:13]} 72. Rcc8 {[%emt 0:00:28]} Rd6 {[%emt 0:01:38]} 73. Rg8+ {[%emt 0:00:35]} Kf6 {[%emt 0:00:47]} 74. Ra7 {[%emt 0:02:46]} Rdb6 {[%emt 0:02:19]} 75. g5+ {[%emt 0:00:29]} Ke6 {[%emt 0:00:16]} 76. f4 {[%emt 0:01:06]} Rb7 {[%emt 0:01:10]} 77. Raa8 {[%emt 0:00:50]} Kf5 {[%emt 0:01:07]} 78. Ra5+ {[%emt 0:00:25]} R4b5 {[%emt 0:00:09]} 79. Rxb5+ {[%emt 0:00:20]} Rxb5 {[%emt 0:00:05]} 80. Rg7 {[%emt 0:00:11]} Rb3+ {[%emt 0:00:15]} 81. Kh4 {[%emt 0:00:06]} Ke6 {[%emt 0:00:45]} 82. Kg4 {[%emt 0:00:14]} Rb4 {[%emt 0:00:43]} 83. Rg8 {[%emt 0:01:05]} Ke7 {[%emt 0:00:13]} 84. Ra8 {[%emt 0:00:12]} Rc4 {[%emt 0:00:48]} 85. Kf3 {[%emt 0:01:36]} Rc3+ {[%emt 0:02:10]} 86. Ke4 {[%emt 0:00:04]} Rc4+ {[%emt 0:00:05]} 87. Ke5 {[%emt 0:00:10]} Rc5+ {[%emt 0:00:05]} 88. Kd4 {[%emt 0:00:32]} Rb5 {[%emt 0:00:14]} 89. Ke4 {[%emt 0:00:07]} Rb4+ {[%emt 0:00:07]} 90. Kf5 {[%emt 0:00:03]} Rb5+ {[%emt 0:00:05]} 91. Kg4 {[%emt 0:00:04]} Rb4 {[%emt 0:00:09]} 92. Ra6 {[%emt 0:00:06]} Kf8 {[%emt 0:00:46]} 93. Kf3 {[%emt 0:00:19]} Rb3+ {[%emt 0:00:39]} 94. Ke4 {[%emt 0:00:07]} Rb4+ {[%emt 0:00:08]} 95. Ke5 {[%emt 0:00:04]} Kg7 {[%emt 0:00:38]} 96. f5 {[%emt 0:00:08]} Rb5+ {[%emt 0:01:42]} 97. Kf4 {[%emt 0:00:06]} Rb4+ {[%emt 0:00:06]} 98. Kf3 {[%emt 0:00:09]} Rc4 {[%emt 0:00:23]} 99. Ra7 {[%emt 0:00:12]} Kg8 {[%emt 0:01:59]} 100. Re7 {[%emt 0:01:34]} Rb4 {[%emt 0:00:36]} 101. f6 {[%emt 0:02:18]} Ra4 {[%emt 0:00:21]} 102. Re4 {[%emt 0:00:06]} Ra1 {[%emt 0:00:50]} 103. Kf4 {[%emt 0:00:45]} Kh7 {[%emt 0:00:43]} 104. Kf5 {[%emt 0:00:07]} Rf1+ {[%emt 0:00:25]} 105. Rf4 {[%emt 0:00:08]} Ra1 {[%emt 0:00:12]} 106. Rh4+ {[%emt 0:01:50]} Kg8 {[%emt 0:00:05]} 107. Rd4 {[%emt 0:00:57]} Rf1+ {[%emt 0:00:11]} 108. Ke5 {[%emt 0:00:08]} Kh7 {[%emt 0:00:58]} 109. Kd6 {[%emt 0:00:56]} Re1 {[%emt 0:00:42]} 110. Kd7 {[%emt 0:00:31]} Kg6 {[%emt 0:00:12]} 111. Rd5 {[%emt 0:00:04]} Re2 {[%emt 0:00:22]} 112. Kd8 {[%emt 0:00:04]} Re1 {[%emt 0:00:15]} 113. Kd7 {[%emt 0:00:33]} 1/2-1/2

[Event "Czech Open-E Teams 2022"]
[Site "Pardubice"]
[Date "2022.07.17"]
[Round "6.19"]
[White "Lihotsky, Lukas"]
[Black "Nytra, Ondrej"]
[Result "0-1"]
[ECO "D31"]
[WhiteElo "1935"]
[BlackElo "2214"]
[Annotator "ChessBase"]
[PlyCount "72"]
[EventDate "2022.07.14"]
[EventType "team-tourn"]
[EventCountry "CZE"]
[SourceTitle "playchess.com"]
[Source "ChessBase"]
[SourceQuality "1"]
[TimeControl "5400+30"]

1. d4 {[%emt 0:00:06]} d5 {[%emt 0:00:46]} 2. c4 {[%emt 0:00:03]} e6 {[%emt 0:00:03]} 3. Nc3 {[%emt 0:00:03]} c6 {[%emt 0:00:07]} 4. e4 {[%emt 0:00:18]} dxe4 {[%emt 0:00:06]} 5. Nxe4 {[%emt 0:00:05]} Bb4+ {[%emt 0:00:03]} 6. Bd2 {[%emt 0:00:05]} Qxd4 {[%emt 0:00:04]} 7. Bxb4 {[%emt 0:00:04]} Qxe4+ {[%emt 0:00:11]} 8. Be2 {[%emt 0:00:07]} Na6 {[%emt 0:00:06]} 9. Ba5 {[%emt 0:01:45]} b6 {[%emt 0:00:06]} 10. Qd6 {[%emt 0:01:15]} Bd7 {[%emt 0:00:30]} 11. Bc3 {[%emt 0:02:03]} f6 {[%emt 0:00:30]} 12. O-O-O {[%emt 0:00:12]} O-O-O {[%emt 0:00:05]} 13. Qa3 {[%emt 0:02:02]} Kb7 {[%emt 0:02:38]} 14. Bf3 {[%emt 0:00:03]} Qf4+ {[%emt 0:00:52]} 15. Rd2 {[%emt 0:05:59]} Nh6 {[%emt 0:03:27]} 16. Ne2 {[%emt 0:00:16]} Qc7 17. Nd4 {[%emt 0:02:06]} Nf5 {[%emt 0:05:06]} 18. Nb5 {[%emt 0:30:30]} Qf4 {[%emt 0:00:14]} 19. c5 {[%emt 0:09:50]} Bc8 {[%emt 0:23:14]} 20. Nd6+ {[%emt 0:09:54]} Nxd6 {[%emt 0:00:34]} 21. cxd6 {[%emt 0:00:09]} Nc5 {[%emt 0:00:09]} 22. Bd4 {[%emt 0:04:26]} Rxd6 {[%emt 0:02:17]} 23. g3 {[%emt 0:02:04]} Qxd2+ {[%emt 0:12:01]} 24. Kxd2 {[%emt 0:00:09]} Rxd4+ {[%emt 0:00:03]} 25. Kc1 {[%emt 0:04:20]} Rd3 {[%emt 0:02:45]} 26. Qb4 {[%emt 0:00:41]} Rhd8 {[%emt 0:00:02]} 27. Qg4 {[%emt 0:01:01]} f5 {[%emt 0:00:19]} 28. Qh5 {[%emt 0:00:57]} g6 {[%emt 0:00:25]} 29. Qxh7+ {[%emt 0:00:17]} R8d7 {[%emt 0:00:05]} 30. Qxg6 {[%emt 0:00:05]} Rxf3 {[%emt 0:00:15]} 31. Rd1 {[%emt 0:01:29]} Rxf2 {[%emt 0:03:18]} 32. Rxd7+ {[%emt 0:00:26]} Bxd7 {[%emt 0:00:04]} 33. h4 {[%emt 0:00:09]} Nd3+ {[%emt 0:00:11]} 34. Kb1 {[%emt 0:01:35]} Rxb2+ {[%emt 0:00:55]} 35. Ka1 {[%emt 0:00:01]} Rh2 {[%emt 0:00:19]} 36. h5 {[%emt 0:00:28]} Rh1# {[%emt 0:00:08]} 0-1

[Event "Czech Open-E Teams 2022"]
[Site "Pardubice"]
[Date "2022.07.17"]
[Round "6.20"]
[White "Jasny, Stanislav"]
[Black "Stocek, Martin"]
[Result "1/2-1/2"]
[ECO "A80"]
[WhiteElo "2261"]
[BlackElo "1851"]
[Annotator "ChessBase"]
[PlyCount "53"]
[EventDate "2022.07.14"]
[EventType "team-tourn"]
[EventCountry "CZE"]
[SourceTitle "playchess.com"]
[Source "ChessBase"]
[SourceQuality "1"]
[TimeControl "5400+30"]

1. d4 {[%emt 0:00:10]} f5 {[%emt 0:00:04]} 2. Nf3 {[%emt 0:01:46]} Nf6 {[%emt 0:00:20]} 3. b3 {[%emt 0:00:34]} e6 {[%emt 0:00:40]} 4. e3 {[%emt 0:00:47]} d5 {[%emt 0:01:50]} 5. Bd3 {[%emt 0:00:17]} Bd6 {[%emt 0:04:00]} 6. c4 {[%emt 0:00:10]} c6 {[%emt 0:00:35]} 7. O-O {[%emt 0:00:07]} O-O {[%emt 0:01:07]} 8. Ba3 {[%emt 0:02:39]} Ne4 {[%emt 0:08:07]} 9. Bxd6 {[%emt 0:01:05]} Nxd6 {[%emt 0:02:31]} 10. Nc3 {[%emt 0:00:56]} Bd7 {[%emt 0:04:01]} 11. Ne5 {[%emt 0:05:30]} Nf7 {[%emt 0:07:14]} 12. Nxf7 {[%emt 0:03:37]} Rxf7 {[%emt 0:00:49]} 13. f4 {[%emt 0:00:05]} Be8 {[%emt 0:01:33]} 14. c5 {[%emt 0:01:00]} Nd7 {[%emt 0:01:19]} 15. b4 {[%emt 0:00:08]} Nf6 {[%emt 0:03:37]} 16. Rb1 {[%emt 0:02:04]} h6 {[%emt 0:02:01]} 17. b5 {[%emt 0:01:40]} b6 {[%emt 0:15:09]} 18. cxb6 {[%emt 0:02:24]} Qxb6 {[%emt 0:09:28]} 19. Na4 {[%emt 0:08:19]} Qa5 {[%emt 0:01:35]} 20. bxc6 {[%emt 0:01:21]} Bxc6 {[%emt 0:01:01]} 21. Nc5 {[%emt 0:00:09]} Qxa2 {[%emt 0:06:48]} 22. Qc1 {[%emt 0:03:05]} Qa5 {[%emt 0:08:32]} 23. Ra1 {[%emt 0:03:06]} Qb4 {[%emt 0:03:45]} 24. Qc2 {[%emt 0:03:57]} Bb5 {[%emt 0:05:09]} 25. Nxe6 {[%emt 0:12:24]} Bxd3 {[%emt 0:00:23]} 26. Qxd3 {[%emt 0:00:06]} Ne4 {[%emt 0:02:30]} 27. Qa6 {[%emt 0:05:13]} 1/2-1/2